[Event "Early-Titled-Tuesday-Blitz-November-28-2023"]
[Site "Chess.com"]
[Date "2023.11.28"]
[Round "8"]
[White "nitpicker"]
[Black "szachuspl"]
[Result "0-1"]
[WhiteElo "2334"]
[BlackElo "2529"]
[TimeControl "180+1"]
[EndTime "9:33:14 PST"]
[Termination "szachuspl won on time"]

1. d4 {[%clk 0:03:00.9]} 1... Nf6 {[%clk 0:02:53.4]} 2. c4 {[%clk 0:03:00.9]}
2... g6 {[%clk 0:02:53.2]} 3. Nc3 {[%clk 0:02:59.8]} 3... Bg7 {[%clk 0:02:53.8]}
4. e4 {[%clk 0:02:59.9]} 4... O-O {[%clk 0:02:54.2]} 5. Be2 {[%clk 0:02:59.8]}
5... d6 {[%clk 0:02:54.8]} 6. Nf3 {[%clk 0:02:59.3]} 6... Nbd7 {[%clk
0:02:53.7]} 7. Be3 {[%clk 0:02:55.5]} 7... e5 {[%clk 0:02:53]} 8. d5 {[%clk
0:02:55.4]} 8... Nc5 {[%clk 0:02:52.9]} 9. Nd2 {[%clk 0:02:51.6]} 9... a5 {[%clk
0:02:53.1]} 10. a3 {[%clk 0:02:50.1]} 10... a4 {[%clk 0:02:35.1]} 11. Bxc5
{[%clk 0:02:49.4]} 11... dxc5 {[%clk 0:02:35.5]} 12. Nxa4 {[%clk 0:02:50]} 12...
b6 {[%clk 0:02:34.9]} 13. O-O {[%clk 0:02:43.3]} 13... Ne8 {[%clk 0:02:33.4]}
14. b4 {[%clk 0:02:36]} 14... Bd7 {[%clk 0:02:31.2]} 15. Nc3 {[%clk 0:02:31.3]}
15... Nd6 {[%clk 0:02:30]} 16. Nb3 {[%clk 0:02:19.3]} 16... cxb4 {[%clk
0:02:25.5]} 17. axb4 {[%clk 0:02:17.6]} 17... Rxa1 {[%clk 0:02:26.1]} 18. Qxa1
{[%clk 0:02:16.3]} 18... f5 {[%clk 0:02:26.8]} 19. c5 {[%clk 0:02:04.2]} 19...
Nxe4 {[%clk 0:02:24.3]} 20. Nxe4 {[%clk 0:02:04.2]} 20... fxe4 {[%clk
0:02:25.1]} 21. Bc4 {[%clk 0:02:00.4]} 21... Kh8 {[%clk 0:02:23.5]} 22. Nd2
{[%clk 0:01:43.4]} 22... Bf5 {[%clk 0:02:14.8]} 23. Re1 {[%clk 0:01:33.7]} 23...
Qh4 {[%clk 0:02:06.6]} 24. g3 {[%clk 0:01:23.5]} 24... Qg4 {[%clk 0:02:00.2]}
25. Bf1 {[%clk 0:01:15.5]} 25... e3 {[%clk 0:01:56.9]} 26. fxe3 {[%clk 0:01:01]}
26... Qxb4 {[%clk 0:01:56.9]} 27. Qc1 {[%clk 0:00:30.5]} 27... bxc5 {[%clk
0:01:52.3]} 28. e4 {[%clk 0:00:29]} 28... Bh6 {[%clk 0:01:49.9]} 29. Re2 {[%clk
0:00:14.4]} 29... Bg4 {[%clk 0:01:48]} 30. Rg2 {[%clk 0:00:12.8]} 30... Bh3
{[%clk 0:01:42.2]} 31. Re2 {[%clk 0:00:10.5]} 31... Bxf1 {[%clk 0:01:39.8]} 0-1

[Event "Early-Titled-Tuesday-Blitz-November-28-2023"]
[Site "Chess.com"]
[Date "2023.11.28"]
[Round "8"]
[White "platy3"]
[Black "suyu28"]
[Result "1-0"]
[WhiteElo "2881"]
[BlackElo "2734"]
[TimeControl "180+1"]
[EndTime "9:33:21 PST"]
[Termination "platy3 won by resignation"]

1. e4 {[%clk 0:02:55.2]} 1... e5 {[%clk 0:02:54.3]} 2. Nf3 {[%clk 0:02:54.9]}
2... Nc6 {[%clk 0:02:54.7]} 3. Bb5 {[%clk 0:02:54.7]} 3... a6 {[%clk 0:02:55.2]}
4. Ba4 {[%clk 0:02:55]} 4... Nf6 {[%clk 0:02:55.8]} 5. d3 {[%clk 0:02:55.8]}
5... b5 {[%clk 0:02:55.6]} 6. Bb3 {[%clk 0:02:56.2]} 6... Bc5 {[%clk 0:02:56.3]}
7. a4 {[%clk 0:02:56.1]} 7... Rb8 {[%clk 0:02:47.8]} 8. Nc3 {[%clk 0:02:55.4]}
8... O-O {[%clk 0:02:41.4]} 9. O-O {[%clk 0:02:54.4]} 9... h6 {[%clk 0:02:40.1]}
10. Be3 {[%clk 0:02:50.6]} 10... Bxe3 {[%clk 0:02:34.9]} 11. fxe3 {[%clk
0:02:51.5]} 11... d6 {[%clk 0:02:35.6]} 12. Qe1 {[%clk 0:02:50.8]} 12... Be6
{[%clk 0:02:22.6]} 13. Nd5 {[%clk 0:02:41.5]} 13... Bxd5 {[%clk 0:02:22.4]} 14.
exd5 {[%clk 0:02:41.7]} 14... Ne7 {[%clk 0:02:22.7]} 15. axb5 {[%clk 0:02:41.7]}
15... axb5 {[%clk 0:02:19.6]} 16. e4 {[%clk 0:02:41.8]} 16... c6 {[%clk
0:02:19.2]} 17. dxc6 {[%clk 0:02:38.5]} 17... Qb6+ {[%clk 0:02:16]} 18. Kh1
{[%clk 0:02:38.4]} 18... Qxc6 {[%clk 0:02:16.9]} 19. Nh4 {[%clk 0:02:37.4]}
19... Kh7 {[%clk 0:01:58.2]} 20. Qg3 {[%clk 0:02:33.4]} 20... Ng6 {[%clk
0:01:49.6]} 21. Nf5 {[%clk 0:02:08.3]} 21... d5 {[%clk 0:01:49.2]} 22. exd5
{[%clk 0:01:50.7]} 22... Nxd5 {[%clk 0:01:49]} 23. Qf3 {[%clk 0:01:37.6]} 23...
Nb4 {[%clk 0:01:38]} 24. Ra7 {[%clk 0:01:23.2]} 24... Qf6 {[%clk 0:01:21.6]} 25.
Qe4 {[%clk 0:01:12]} 25... Kh8 {[%clk 0:01:13.4]} 26. Qxb4 {[%clk 0:01:10.9]}
26... Nf4 {[%clk 0:01:04.9]} 27. Ng3 {[%clk 0:01:05.7]} 27... h5 {[%clk
0:00:59.5]} 28. Nxh5 {[%clk 0:01:01.1]} 28... Qb6 {[%clk 0:00:56.7]} 29. Nxf4
{[%clk 0:01:00.9]} 29... exf4 {[%clk 0:00:48.7]} 30. Rxf7 {[%clk 0:00:57.3]}
30... Rxf7 {[%clk 0:00:47.3]} 31. Bxf7 {[%clk 0:00:58.1]} 1-0

[Event "Early-Titled-Tuesday-Blitz-November-28-2023"]
[Site "Chess.com"]
[Date "2023.11.28"]
[Round "8"]
[White "jens1102"]
[Black "angryspacevoid"]
[Result "1-0"]
[WhiteElo "2629"]
[BlackElo "2479"]
[TimeControl "180+1"]
[EndTime "9:33:23 PST"]
[Termination "jens1102 won on time"]

1. c4 {[%clk 0:03:00.9]} 1... e5 {[%clk 0:02:56.6]} 2. g3 {[%clk 0:03:00.8]}
2... Nf6 {[%clk 0:02:55.1]} 3. Bg2 {[%clk 0:03:01.1]} 3... d5 {[%clk 0:02:53.7]}
4. cxd5 {[%clk 0:03:00.9]} 4... Nxd5 {[%clk 0:02:54.6]} 5. Nf3 {[%clk
0:03:01.5]} 5... Nc6 {[%clk 0:02:49.7]} 6. O-O {[%clk 0:03:00.9]} 6... Be6
{[%clk 0:02:36.9]} 7. d4 {[%clk 0:03:00.1]} 7... exd4 {[%clk 0:02:20.1]} 8. Nxd4
{[%clk 0:02:53.6]} 8... Nxd4 {[%clk 0:02:19]} 9. Qxd4 {[%clk 0:02:54.5]} 9...
Qd7 {[%clk 0:02:14.7]} 10. Bg5 {[%clk 0:02:46.2]} 10... f6 {[%clk 0:02:11.8]}
11. Bd2 {[%clk 0:02:43.3]} 11... O-O-O {[%clk 0:02:01.2]} 12. Nc3 {[%clk
0:02:41.6]} 12... Nxc3 {[%clk 0:01:49.1]} 13. Qxd7+ {[%clk 0:02:41]} 13... Rxd7
{[%clk 0:01:42.5]} 14. Bxc3 {[%clk 0:02:41.9]} 14... Bc5 {[%clk 0:01:42.3]} 15.
Rfd1 {[%clk 0:02:34.6]} 15... Rhd8 {[%clk 0:01:40.5]} 16. Rxd7 {[%clk
0:02:34.8]} 16... Rxd7 {[%clk 0:01:41.4]} 17. b3 {[%clk 0:02:31.9]} 17... Bd4
{[%clk 0:01:32.1]} 18. Bxd4 {[%clk 0:02:23.9]} 18... Rxd4 {[%clk 0:01:33]} 19.
Kf1 {[%clk 0:02:20.7]} 19... Rd2 {[%clk 0:01:31.3]} 20. Ke1 {[%clk 0:02:20.8]}
20... Rb2 {[%clk 0:01:30.2]} 21. Be4 {[%clk 0:02:20.7]} 21... g6 {[%clk
0:01:21.9]} 22. Bd3 {[%clk 0:02:19.6]} 22... a5 {[%clk 0:01:20.6]} 23. Kd1
{[%clk 0:02:18.5]} 23... a4 {[%clk 0:01:17]} 24. bxa4 {[%clk 0:02:17.7]} 24...
Rxa2 {[%clk 0:01:17.6]} 25. Rxa2 {[%clk 0:02:16.7]} 25... Bxa2 {[%clk
0:01:18.5]} 26. Kc2 {[%clk 0:02:14.4]} 26... b6 {[%clk 0:01:16.1]} 27. h4 {[%clk
0:02:14.9]} 27... Bd5 {[%clk 0:01:15.9]} 28. h5 {[%clk 0:02:14.6]} 28... f5
{[%clk 0:01:11.9]} 29. h6 {[%clk 0:02:15]} 29... Kd7 {[%clk 0:01:05.5]} 30. Kc3
{[%clk 0:02:08.8]} 30... Kd6 {[%clk 0:01:00.4]} 31. Kb4 {[%clk 0:02:08.6]} 31...
c5+ {[%clk 0:00:55.4]} 32. Kb5 {[%clk 0:02:08.8]} 32... Kc7 {[%clk 0:00:49.9]}
33. g4 {[%clk 0:02:03.1]} 33... fxg4 {[%clk 0:00:20]} 34. Bxg6 {[%clk
0:01:58.9]} 34... Bg8 {[%clk 0:00:13.6]} 35. Bf5 {[%clk 0:01:59.2]} 35... Bb3
{[%clk 0:00:06.2]} 36. Bxh7 {[%clk 0:01:56.9]} 36... Bd5 {[%clk 0:00:02.6]} 37.
Bf5 {[%clk 0:01:54.7]} 37... Bg8 {[%clk 0:00:03.1]} 38. h7 {[%clk 0:01:52.1]}
38... Bxh7 {[%clk 0:00:03.3]} 39. Bxh7 {[%clk 0:01:53]} 39... Kd6 {[%clk
0:00:02.7]} 40. Bf5 {[%clk 0:01:53.2]} 40... g3 {[%clk 0:00:01.7]} 41. fxg3
{[%clk 0:01:53]} 1-0

[Event "Early-Titled-Tuesday-Blitz-November-28-2023"]
[Site "Chess.com"]
[Date "2023.11.28"]
[Round "8"]
[White "ideika"]
[Black "Mistango"]
[Result "0-1"]
[WhiteElo "2186"]
[BlackElo "2464"]
[TimeControl "180+1"]
[EndTime "9:33:27 PST"]
[Termination "Mistango won by checkmate"]

1. e4 {[%clk 0:02:59.2]} 1... c5 {[%clk 0:02:59.2]} 2. Nf3 {[%clk 0:02:59]} 2...
d6 {[%clk 0:02:59.4]} 3. d4 {[%clk 0:02:59.1]} 3... cxd4 {[%clk 0:03:00.3]} 4.
Nxd4 {[%clk 0:02:59.3]} 4... Nf6 {[%clk 0:03:00.9]} 5. Nc3 {[%clk 0:02:59.7]}
5... a6 {[%clk 0:03:01.6]} 6. Bg5 {[%clk 0:03:00]} 6... Nbd7 {[%clk 0:03:01.1]}
7. f4 {[%clk 0:03:00]} 7... e6 {[%clk 0:03:00.3]} 8. Qf3 {[%clk 0:02:57.7]} 8...
Qc7 {[%clk 0:03:00.5]} 9. O-O-O {[%clk 0:02:57.6]} 9... b5 {[%clk 0:03:00.8]}
10. a3 {[%clk 0:02:42.9]} 10... Bb7 {[%clk 0:03:00.6]} 11. g4 {[%clk 0:02:42.8]}
11... Be7 {[%clk 0:02:59.4]} 12. Bxf6 {[%clk 0:02:30.8]} 12... gxf6 {[%clk
0:02:57]} 13. f5 {[%clk 0:02:26]} 13... Ne5 {[%clk 0:02:56]} 14. Qg3 {[%clk
0:02:10.3]} 14... Qd7 {[%clk 0:02:47.2]} 15. h4 {[%clk 0:02:01]} 15... Rg8
{[%clk 0:02:46.5]} 16. Be2 {[%clk 0:02:00.1]} 16... h5 {[%clk 0:02:46.5]} 17. g5
{[%clk 0:01:53.6]} 17... fxg5 {[%clk 0:02:33.5]} 18. fxe6 {[%clk 0:01:48.2]}
18... fxe6 {[%clk 0:02:30.8]} 19. Bxh5+ {[%clk 0:01:47.2]} 19... Kd8 {[%clk
0:02:30.7]} 20. hxg5 {[%clk 0:01:41]} 20... Rxg5 {[%clk 0:02:27.7]} 21. Qh3
{[%clk 0:01:37.8]} 21... Bc8 {[%clk 0:02:22.7]} 22. Rhg1 {[%clk 0:01:20.3]}
22... Kc7 {[%clk 0:02:17.7]} 23. Kb1 {[%clk 0:01:13.5]} 23... Nc6 {[%clk
0:02:09.1]} 24. Rxg5 {[%clk 0:01:00.4]} 24... Bxg5 {[%clk 0:02:09.7]} 25. Ndxb5+
{[%clk 0:00:59.3]} 25... axb5 {[%clk 0:02:08.8]} 26. Nxb5+ {[%clk 0:00:59.4]}
26... Kb8 {[%clk 0:02:02]} 27. Rxd6 {[%clk 0:00:55.4]} 27... Qb7 {[%clk
0:01:52.3]} 28. c4 {[%clk 0:00:40.3]} 28... Bf4 {[%clk 0:01:48.7]} 29. Rd1
{[%clk 0:00:35.7]} 29... Be5 {[%clk 0:01:35.8]} 30. Bg4 {[%clk 0:00:24.8]} 30...
Na7 {[%clk 0:01:31.4]} 31. Qh5 {[%clk 0:00:20.1]} 31... Qxe4+ {[%clk 0:01:28.5]}
32. Ka1 {[%clk 0:00:13.6]} 32... Nxb5 {[%clk 0:01:28.2]} 33. cxb5 {[%clk
0:00:11.9]} 33... Rxa3# {[%clk 0:01:28.8]} 0-1

[Event "Early-Titled-Tuesday-Blitz-November-28-2023"]
[Site "Chess.com"]
[Date "2023.11.28"]
[Round "8"]
[White "MightyGMpretender"]
[Black "dropstoneDP"]
[Result "0-1"]
[WhiteElo "2817"]
[BlackElo "2965"]
[TimeControl "180+1"]
[EndTime "9:33:31 PST"]
[Termination "dropstoneDP won on time"]

1. Nf3 {[%clk 0:03:00.9]} 1... d5 {[%clk 0:02:58.8]} 2. e3 {[%clk 0:03:00.3]}
2... Nf6 {[%clk 0:02:59.2]} 3. c4 {[%clk 0:03:00.3]} 3... e6 {[%clk 0:02:59.9]}
4. b3 {[%clk 0:03:00.6]} 4... Be7 {[%clk 0:03:00.4]} 5. Bb2 {[%clk 0:03:00.5]}
5... O-O {[%clk 0:03:00.9]} 6. Nc3 {[%clk 0:02:57]} 6... c5 {[%clk 0:02:59.4]}
7. cxd5 {[%clk 0:02:57.4]} 7... exd5 {[%clk 0:03:00.3]} 8. d4 {[%clk 0:02:57.1]}
8... Nc6 {[%clk 0:03:00.4]} 9. Be2 {[%clk 0:02:56.9]} 9... Ne4 {[%clk 0:03:01]}
10. O-O {[%clk 0:02:55.8]} 10... Bf6 {[%clk 0:03:01.2]} 11. Rc1 {[%clk
0:02:55.8]} 11... cxd4 {[%clk 0:03:01.6]} 12. Nxe4 {[%clk 0:02:54]} 12... dxe4
{[%clk 0:03:02.5]} 13. Nxd4 {[%clk 0:02:54.5]} 13... Nxd4 {[%clk 0:03:02.8]} 14.
Bxd4 {[%clk 0:02:54.9]} 14... Bxd4 {[%clk 0:03:03.2]} 15. Qxd4 {[%clk
0:02:55.2]} 15... Qxd4 {[%clk 0:03:03.7]} 16. exd4 {[%clk 0:02:55.7]} 16... Rd8
{[%clk 0:03:04.6]} 17. Rfd1 {[%clk 0:02:46.9]} 17... Be6 {[%clk 0:03:04.3]} 18.
f3 {[%clk 0:02:38.8]} 18... Bd5 {[%clk 0:02:54.8]} 19. fxe4 {[%clk 0:02:32]}
19... Bxe4 {[%clk 0:02:55.7]} 20. Kf2 {[%clk 0:02:30.4]} 20... Rd7 {[%clk
0:02:53.4]} 21. Bb5 {[%clk 0:02:17]} 21... Rd6 {[%clk 0:02:50.3]} 22. Rc7 {[%clk
0:02:12.6]} 22... Rad8 {[%clk 0:02:39.3]} 23. g3 {[%clk 0:01:53.3]} 23... Kf8
{[%clk 0:02:28.4]} 24. Bc4 {[%clk 0:01:47.5]} 24... Rf6+ {[%clk 0:02:26.1]} 25.
Ke3 {[%clk 0:01:29.1]} 25... Re8 {[%clk 0:02:24.8]} 26. Kd2 {[%clk 0:01:29.2]}
26... Rf2+ {[%clk 0:02:24.1]} 27. Kc3 {[%clk 0:01:29.1]} 27... b5 {[%clk
0:02:23.2]} 28. Rf1 {[%clk 0:01:21.7]} 28... Rc2+ {[%clk 0:02:18]} 29. Kb4
{[%clk 0:01:20.1]} 29... bxc4 {[%clk 0:02:18.6]} 30. Rfxf7+ {[%clk 0:01:13.7]}
30... Kg8 {[%clk 0:02:18.1]} 31. Rxg7+ {[%clk 0:01:14.4]} 31... Kh8 {[%clk
0:02:18.7]} 32. bxc4 {[%clk 0:01:05]} 32... Rb8+ {[%clk 0:02:17.4]} 33. Kc5
{[%clk 0:00:56.6]} 33... Bd3 {[%clk 0:02:17.6]} 34. Kd6 {[%clk 0:00:48.8]} 34...
Rd8+ {[%clk 0:02:10.5]} 35. Ke5 {[%clk 0:00:41.5]} 35... Re2+ {[%clk 0:02:09.2]}
36. Kf6 {[%clk 0:00:31]} 36... Rf8+ {[%clk 0:02:08.8]} 37. Kg5 {[%clk
0:00:22.7]} 37... Rf5+ {[%clk 0:02:04.7]} 38. Kg4 {[%clk 0:00:17.9]} 38... Rxh2
{[%clk 0:01:47.4]} 39. Rg5 {[%clk 0:00:01.1]} 39... h5+ {[%clk 0:01:46.9]} 0-1

[Event "Early-Titled-Tuesday-Blitz-November-28-2023"]
[Site "Chess.com"]
[Date "2023.11.28"]
[Round "8"]
[White "Aradhya2000"]
[Black "FairChess_on_YouTube"]
[Result "0-1"]
[WhiteElo "2718"]
[BlackElo "3075"]
[TimeControl "180+1"]
[EndTime "9:33:32 PST"]
[Termination "FairChess_on_YouTube won by resignation"]

1. d4 {[%clk 0:03:00.9]} 1... Nf6 {[%clk 0:02:56.5]} 2. c4 {[%clk 0:03:01]} 2...
e6 {[%clk 0:02:56.2]} 3. Nf3 {[%clk 0:03:01.1]} 3... a6 {[%clk 0:02:52.9]} 4.
Nc3 {[%clk 0:03:00.4]} 4... d5 {[%clk 0:02:52.6]} 5. cxd5 {[%clk 0:02:56.6]}
5... exd5 {[%clk 0:02:53.5]} 6. Qb3 {[%clk 0:02:56.5]} 6... Be7 {[%clk
0:02:49.1]} 7. Bf4 {[%clk 0:02:52.7]} 7... O-O {[%clk 0:02:46.9]} 8. e3 {[%clk
0:02:53]} 8... Re8 {[%clk 0:02:37.3]} 9. Rc1 {[%clk 0:02:50.2]} 9... c6 {[%clk
0:02:36.7]} 10. Bxb8 {[%clk 0:02:49.2]} 10... Rxb8 {[%clk 0:02:37.6]} 11. Bxa6
{[%clk 0:02:48.8]} 11... Bd6 {[%clk 0:02:38.2]} 12. Be2 {[%clk 0:02:48.5]} 12...
Bg4 {[%clk 0:02:36.3]} 13. O-O {[%clk 0:02:40.3]} 13... h5 {[%clk 0:02:36.1]}
14. Qc2 {[%clk 0:02:31.2]} 14... Qd7 {[%clk 0:02:30.8]} 15. Rfe1 {[%clk
0:02:15]} 15... Re7 {[%clk 0:02:28]} 16. Na4 {[%clk 0:02:12.2]} 16... Rbe8
{[%clk 0:02:26.4]} 17. Nc5 {[%clk 0:02:12]} 17... Qc8 {[%clk 0:02:24.9]} 18. Nd3
{[%clk 0:02:07.4]} 18... Bf5 {[%clk 0:02:19.5]} 19. Qb3 {[%clk 0:01:59.9]} 19...
Qb8 {[%clk 0:02:15.5]} 20. Nc5 {[%clk 0:01:57.3]} 20... Ng4 {[%clk 0:02:08.6]}
21. h3 {[%clk 0:01:44.7]} 21... Bh2+ {[%clk 0:01:32.3]} 22. Kf1 {[%clk
0:01:43.9]} 22... Nxf2 {[%clk 0:01:32.9]} 23. Kxf2 {[%clk 0:01:42]} 23... Qg3+
{[%clk 0:01:27]} 24. Kf1 {[%clk 0:01:37.5]} 24... Bxh3 {[%clk 0:01:21.3]} 25.
gxh3 {[%clk 0:01:33.2]} 25... Qxh3+ {[%clk 0:01:20.6]} 26. Kf2 {[%clk
0:01:33.3]} 26... Qg3+ {[%clk 0:01:15.2]} 27. Kf1 {[%clk 0:01:33.3]} 27... Rxe3
{[%clk 0:01:13.8]} 28. Qxe3 {[%clk 0:01:14.4]} 28... Qh3+ {[%clk 0:01:08.9]} 29.
Kf2 {[%clk 0:01:13.8]} 29... Bg3+ {[%clk 0:01:03.3]} 30. Kg1 {[%clk 0:01:14.1]}
30... Rxe3 {[%clk 0:01:03.9]} 31. Bf1 {[%clk 0:01:14.6]} 31... Bf2+ {[%clk
0:01:03.5]} 32. Kxf2 {[%clk 0:01:12.8]} 32... Qxf3+ {[%clk 0:01:04.1]} 33. Kg1
{[%clk 0:01:13.3]} 33... Qg3+ {[%clk 0:01:04.7]} 34. Kh1 {[%clk 0:01:13.6]}
34... Rxe1 {[%clk 0:01:04.7]} 35. Rxe1 {[%clk 0:01:13.1]} 35... Qxe1 {[%clk
0:01:05.6]} 36. Kg2 {[%clk 0:01:13.6]} 36... Qd2+ {[%clk 0:01:05.8]} 37. Kf3
{[%clk 0:01:14]} 37... Qxb2 {[%clk 0:01:04.4]} 38. Ke3 {[%clk 0:01:12]} 38...
Qxa2 {[%clk 0:01:03.4]} 39. Bd3 {[%clk 0:01:10.9]} 39... Qb2 {[%clk 0:01:03.6]}
40. Nd7 {[%clk 0:01:10.6]} 40... b6 {[%clk 0:01:02.2]} 41. Ne5 {[%clk
0:01:10.6]} 41... c5 {[%clk 0:01:01.6]} 42. Nf3 {[%clk 0:01:10.9]} 42... c4
{[%clk 0:01:00.6]} 43. Bf5 {[%clk 0:01:10.4]} 43... Qc1+ {[%clk 0:01:00.9]} 44.
Ke2 {[%clk 0:01:10.2]} 44... b5 {[%clk 0:01:00.8]} 0-1

[Event "Early-Titled-Tuesday-Blitz-November-28-2023"]
[Site "Chess.com"]
[Date "2023.11.28"]
[Round "8"]
[White "PawnEatingZombie"]
[Black "queen_iryna"]
[Result "0-1"]
[WhiteElo "2174"]
[BlackElo "2301"]
[TimeControl "180+1"]
[EndTime "9:33:35 PST"]
[Termination "queen_iryna won by resignation"]

1. e4 {[%clk 0:03:00.9]} 1... d6 {[%clk 0:03:00.5]} 2. d4 {[%clk 0:03:00]} 2...
Nf6 {[%clk 0:03:00.3]} 3. Bd3 {[%clk 0:02:58]} 3... e5 {[%clk 0:03:00.4]} 4. c3
{[%clk 0:02:57.8]} 4... Nbd7 {[%clk 0:03:00.1]} 5. Nf3 {[%clk 0:02:57.2]} 5...
Be7 {[%clk 0:02:59.9]} 6. O-O {[%clk 0:02:56.4]} 6... O-O {[%clk 0:02:59.6]} 7.
Re1 {[%clk 0:02:56.4]} 7... c6 {[%clk 0:02:57.4]} 8. Nbd2 {[%clk 0:02:56]} 8...
Qc7 {[%clk 0:02:46.2]} 9. a4 {[%clk 0:02:55.8]} 9... Re8 {[%clk 0:02:16.6]} 10.
dxe5 {[%clk 0:02:54.9]} 10... dxe5 {[%clk 0:02:16.5]} 11. Nc4 {[%clk 0:02:50.6]}
11... a5 {[%clk 0:02:03.8]} 12. h3 {[%clk 0:02:46]} 12... h6 {[%clk 0:01:59.6]}
13. Qc2 {[%clk 0:02:42.7]} 13... Nf8 {[%clk 0:01:59.2]} 14. Bf1 {[%clk
0:02:40.3]} 14... Ng6 {[%clk 0:01:54]} 15. Kh2 {[%clk 0:02:35.1]} 15... Be6
{[%clk 0:01:45]} 16. b3 {[%clk 0:02:30.9]} 16... b5 {[%clk 0:01:36.6]} 17. Ne3
{[%clk 0:02:22.4]} 17... Nf4 {[%clk 0:01:26.2]} 18. g3 {[%clk 0:02:16.6]} 18...
Ng6 {[%clk 0:01:23.8]} 19. axb5 {[%clk 0:02:11.5]} 19... cxb5 {[%clk 0:01:22.8]}
20. Bxb5 {[%clk 0:02:10.7]} 20... Rec8 {[%clk 0:01:21.7]} 21. Bc4 {[%clk
0:02:04.6]} 21... Bxc4 {[%clk 0:01:18.4]} 22. Nxc4 {[%clk 0:02:03.9]} 22... a4
{[%clk 0:01:17.9]} 23. Nfd2 {[%clk 0:01:57.9]} 23... axb3 {[%clk 0:01:15.3]} 24.
Qb1 {[%clk 0:01:48.6]} 24... Rxa1 {[%clk 0:01:12.5]} 25. Qxa1 {[%clk 0:01:48.4]}
25... Qc5 {[%clk 0:01:04.5]} 26. Kg2 {[%clk 0:01:39.4]} 26... Nh5 {[%clk
0:00:57.4]} 27. Qb2 {[%clk 0:01:19.8]} 27... Nhf4+ {[%clk 0:00:50.3]} 28. gxf4
{[%clk 0:01:17.9]} 28... Nxf4+ {[%clk 0:00:51.2]} 29. Kf1 {[%clk 0:00:45.7]}
29... Nd3 {[%clk 0:00:50.4]} 30. Nxb3 {[%clk 0:00:45.1]} 30... Qxc4 {[%clk
0:00:43.1]} 31. Re2 {[%clk 0:00:39.4]} 31... Nxb2 {[%clk 0:00:42.6]} 0-1

[Event "Early-Titled-Tuesday-Blitz-November-28-2023"]
[Site "Chess.com"]
[Date "2023.11.28"]
[Round "8"]
[White "Casper"]
[Black "elmusmolamas"]
[Result "1-0"]
[WhiteElo "2426"]
[BlackElo "2572"]
[TimeControl "180+1"]
[EndTime "9:33:36 PST"]
[Termination "Casper won by resignation"]

1. d4 {[%clk 0:02:58.1]} 1... c5 {[%clk 0:02:55.9]} 2. Nf3 {[%clk 0:02:55.4]}
2... cxd4 {[%clk 0:02:51.5]} 3. Nxd4 {[%clk 0:02:56.3]} 3... e5 {[%clk
0:02:51.8]} 4. Nf3 {[%clk 0:02:55.6]} 4... Nc6 {[%clk 0:02:52.3]} 5. e4 {[%clk
0:02:54.7]} 5... Nf6 {[%clk 0:02:52.4]} 6. Bc4 {[%clk 0:02:54.1]} 6... Bb4+
{[%clk 0:02:44.8]} 7. c3 {[%clk 0:02:53.6]} 7... Ba5 {[%clk 0:02:42.2]} 8. O-O
{[%clk 0:02:51.3]} 8... O-O {[%clk 0:02:42]} 9. Bg5 {[%clk 0:02:46.2]} 9... d6
{[%clk 0:02:26.7]} 10. a4 {[%clk 0:02:41.3]} 10... Be6 {[%clk 0:02:26.7]} 11.
Bxe6 {[%clk 0:02:25.3]} 11... fxe6 {[%clk 0:02:27.6]} 12. b4 {[%clk 0:02:25.8]}
12... Bc7 {[%clk 0:02:23.2]} 13. Qb3 {[%clk 0:02:26.7]} 13... Qd7 {[%clk
0:02:21.1]} 14. a5 {[%clk 0:02:26.6]} 14... Nxe4 {[%clk 0:02:18.8]} 15. Nbd2
{[%clk 0:02:08.4]} 15... Nxg5 {[%clk 0:01:54.9]} 16. Nxg5 {[%clk 0:02:08.7]}
16... Rae8 {[%clk 0:01:54.9]} 17. Qc2 {[%clk 0:01:58.5]} 17... Rf5 {[%clk
0:01:49.4]} 18. Nxh7 {[%clk 0:01:48.7]} 18... Qf7 {[%clk 0:01:07.7]} 19. Nf3
{[%clk 0:01:39]} 19... Qg6 {[%clk 0:00:46.8]} 20. Nh4 {[%clk 0:01:14]} 20...
Qxh7 {[%clk 0:00:44.6]} 21. Nxf5 {[%clk 0:01:14.2]} 21... Qxf5 {[%clk
0:00:45.5]} 22. Qa4 {[%clk 0:01:09.3]} 22... a6 {[%clk 0:00:43.9]} 23. b5 {[%clk
0:01:07.5]} 23... axb5 {[%clk 0:00:20]} 24. Qxb5 {[%clk 0:01:08.4]} 24... Nxa5
{[%clk 0:00:20.8]} 25. Qxe8+ {[%clk 0:01:07.1]} 25... Kh7 {[%clk 0:00:18.7]} 26.
Ra4 {[%clk 0:01:07.7]} 26... e4 {[%clk 0:00:15.8]} 27. f3 {[%clk 0:01:04.6]}
27... Bb6+ {[%clk 0:00:14.8]} 28. Kh1 {[%clk 0:01:04.4]} 28... Qb5 {[%clk
0:00:14]} 29. Qxb5 {[%clk 0:01:03.2]} 1-0

[Event "Early-Titled-Tuesday-Blitz-November-28-2023"]
[Site "Chess.com"]
[Date "2023.11.28"]
[Round "8"]
[White "AccioChess"]
[Black "bubeliang"]
[Result "0-1"]
[WhiteElo "2492"]
[BlackElo "2646"]
[TimeControl "180+1"]
[EndTime "9:33:39 PST"]
[Termination "bubeliang won by resignation"]

1. d4 {[%clk 0:03:00.9]} 1... e5 {[%clk 0:02:57.3]} 2. dxe5 {[%clk 0:02:59.8]}
2... Nc6 {[%clk 0:02:57.6]} 3. Nf3 {[%clk 0:03:00]} 3... Qe7 {[%clk 0:02:57.6]}
4. Nc3 {[%clk 0:02:57.4]} 4... Nxe5 {[%clk 0:02:57.4]} 5. Nd5 {[%clk 0:02:56.1]}
5... Nxf3+ {[%clk 0:02:57.4]} 6. gxf3 {[%clk 0:02:56]} 6... Qc5 {[%clk
0:02:57.4]} 7. Be3 {[%clk 0:02:53]} 7... Qc6 {[%clk 0:02:56.3]} 8. Bf4 {[%clk
0:02:49.2]} 8... d6 {[%clk 0:02:56.2]} 9. e4 {[%clk 0:02:46.1]} 9... a6 {[%clk
0:02:53.5]} 10. c4 {[%clk 0:02:42.1]} 10... Be6 {[%clk 0:02:47.6]} 11. Qd2
{[%clk 0:02:26]} 11... Nf6 {[%clk 0:02:43.8]} 12. Nxf6+ {[%clk 0:02:24.5]} 12...
gxf6 {[%clk 0:02:44.7]} 13. Qd4 {[%clk 0:02:12.3]} 13... O-O-O {[%clk
0:02:39.7]} 14. Rg1 {[%clk 0:02:06.9]} 14... Be7 {[%clk 0:02:34.1]} 15. b4
{[%clk 0:01:40.6]} 15... Qa4 {[%clk 0:02:22.6]} 16. Qb2 {[%clk 0:01:32.6]} 16...
Rhg8 {[%clk 0:02:15.4]} 17. Rg3 {[%clk 0:01:16.5]} 17... f5 {[%clk 0:02:11.1]}
18. Be2 {[%clk 0:01:06.4]} 18... Bh4 {[%clk 0:02:08.5]} 19. Rc1 {[%clk
0:00:56.8]} 19... Bxg3 {[%clk 0:02:04.6]} 20. hxg3 {[%clk 0:00:57.7]} 20... fxe4
{[%clk 0:01:59.5]} 21. fxe4 {[%clk 0:00:58.6]} 21... f5 {[%clk 0:01:59.9]} 22.
exf5 {[%clk 0:00:40.7]} 22... Bxf5 {[%clk 0:01:58]} 23. b5 {[%clk 0:00:40.8]}
23... Rde8 {[%clk 0:01:51.9]} 24. Kf1 {[%clk 0:00:37.7]} 24... axb5 {[%clk
0:01:44.6]} 25. Qf6 {[%clk 0:00:16.8]} 25... Bh3+ {[%clk 0:01:39.5]} 26. Ke1
{[%clk 0:00:13.5]} 26... Qxa2 {[%clk 0:01:34.3]} 27. Be3 {[%clk 0:00:12.6]}
27... Rxe3 {[%clk 0:01:24.2]} 28. fxe3 {[%clk 0:00:12.4]} 28... Qa3 {[%clk
0:01:24.6]} 29. Kf2 {[%clk 0:00:11.5]} 29... Qxc1 {[%clk 0:01:22.6]} 30. cxb5
{[%clk 0:00:09.7]} 30... Qh1 {[%clk 0:01:20]} 31. Bf3 {[%clk 0:00:08.2]} 31...
Qh2+ {[%clk 0:01:19]} 0-1